[Event "27th OIBM 2024"]
[Site "Gmund am Tegernsee"]
[Date "2024.10.26"]
[Round "1.47"]
[White "Luetzen, Matthias"]
[Black "Guth, Thomas"]
[Result "0-1"]
[ECO "A30"]
[WhiteElo "2040"]
[BlackElo "2261"]
[Annotator "RC"]
[PlyCount "104"]
[EventDate "2024.09.16"]
[EventType "swiss"]
[EventCountry "GER"]
[SourceTitle "playchess.com"]
[Source "ChessBase"]
[SourceQuality "1"]
[TimeControl "40/5400+30:1800+30"]

1. Nf3 {[%emt 0:00:18]} e6 {[%emt 0:00:07]} 2. c4 {[%emt 0:00:17]} c5 {[%emt 0:00:16]} 3. g3 {[%emt 0:00:12]} b6 {[%emt 0:00:10]} 4. Bg2 {[%emt 0:00:08]} Bb7 {[%emt 0:00:05]} 5. O-O {[%emt 0:00:25]} d6 {[%emt 0:00:22]} 6. Nc3 {[%emt 0:00:11]} Nd7 {[%emt 0:00:17]} 7. e4 {[%emt 0:01:25]} a6 {[%emt 0:01:38]} 8. d4 {[%emt 0:02:06]} cxd4 {[%emt 0:00:10]} 9. Nxd4 {[%emt 0:00:05]} Qc7 {[%emt 0:00:22]} 10. Be3 {[%emt 0:12:19]} Ngf6 {[%emt 0:00:11]} 11. f4 {[%emt 0:13:22]} Be7 {[%emt 0:01:27]} 12. Bf2 {[%emt 0:01:33]} Rc8 {[%emt 0:01:04]} 13. g4 {[%emt 0:09:13]} h5 {[%emt 0:02:59]} 14. h3 {[%emt 0:04:34]} hxg4 {[%emt 0:00:12]} 15. hxg4 {[%emt 0:00:07]} d5 {[%emt 0:12:17]} 16. e5 {[%emt 0:11:57]} dxc4 {[%emt 0:11:04]} 17. Bg3 {[%emt 0:11:59]} Bxg2 {[%emt 0:03:07]} 18. Kxg2 {[%emt 0:00:25]} Qb7+ {[%emt 0:00:19]} 19. Qf3 {[%emt 0:00:20]} Qxf3+ {[%emt 0:01:50]} 20. Kxf3 {[%emt 0:00:31]} Nd5 {[%emt 0:03:04]} 21. Nxd5 {[%emt 0:07:34]} exd5 {[%emt 0:00:09]} 22. Rh1 {[%emt 0:00:12]} Rg8 {[%emt 0:03:04]} 23. e6 {[%emt 0:01:59]} Nc5 {[%emt 0:01:39]} 24. exf7+ {[%emt 0:01:35]} Kxf7 {[%emt 0:00:13]} 25. Rh5 {[%emt 0:00:33]} Rgd8 {[%emt 0:07:03]} 26. Nf5 {[%emt 0:09:53]} Bf8 {[%emt 0:04:02]} 27. Bh4 {[%emt 0:00:37]} g6 {[%emt 0:06:30]} 28. Rh7+ {[%emt 0:04:16]} Kg8 {[%emt 0:01:04]} 29. Bxd8 {[%emt 0:04:42]} Kxh7 {[%emt 0:00:45]} 30. Rh1+ {[%emt 0:00:06]} Kg8 {[%emt 0:00:20]} 31. Ne7+ {[%emt 0:00:18]} Bxe7 {[%emt 0:00:19]} 32. Bxe7 {[%emt 0:00:05]} Ne4 {[%emt 0:07:19]} 33. Rd1 {[%emt 0:00:18]} c3 {[%emt 0:00:17]} 34. bxc3 {[%emt 0:00:44]} Rxc3+ {[%emt 0:00:08]} 35. Kg2 {[%emt 0:02:24]} Kf7 {[%emt 0:00:28]} 36. Bd8 {[%emt 0:00:14]} Ke6 {[%emt 0:00:40]} 37. f5+ {[%emt 0:00:13]} Ke5 {[%emt 0:17:19]} 38. fxg6 {[%emt 0:00:55]} Rg3+ {[%emt 0:00:10]} 39. Kf1 {[%emt 0:00:40]} Rxg4 {[%emt 0:01:06]} 40. Bxb6 {[%emt 0:00:32]} Rxg6 {[%emt 0:00:22]} 41. Bd4+ {[%emt 0:04:19]} Kf4 {[%emt 0:00:37]} 42. a4 {[%emt 0:08:07]} Ng3+ {[%emt 0:02:25]} 43. Kf2 {[%emt 0:00:36]} Nf5 {[%emt 0:02:07]} 44. Ba7 {[%emt 0:02:37]} Ke5 {[%emt 0:06:00]} 45. Bb8+ {[%emt 0:01:39]} Ke4 {[%emt 0:00:45]} 46. Re1+ {[%emt 0:00:43]} Kd4 {[%emt 0:00:20]} 47. Be5+ {[%emt 0:06:55]} Kc4 {[%emt 0:00:21]} 48. Rc1+ {[%emt 0:00:18]} Kb4 {[%emt 0:03:59]} 49. a5 {[%emt 0:06:27]} Re6 {[%emt 0:01:20]} 50. Bc3+ {[%emt 0:01:07]} Kb3 {[%emt 0:00:48]} 51. Bd2 {[%emt 0:00:19]} d4 {[%emt 0:02:42]} 52. Rb1+ {[%emt 0:04:06]} Kc2 {[%emt 0:31:08]} 0-1

[Event "27th OIBM 2024"]
[Site "Gmund am Tegernsee"]
[Date "2024.10.26"]
[Round "1.48"]
[White "Weihrauch, Jakob"]
[Black "Beckers, Thomas"]
[Result "1-0"]
[ECO "B90"]
[WhiteElo "2260"]
[BlackElo "2032"]
[Annotator "RC"]
[PlyCount "65"]
[EventDate "2024.09.16"]
[EventType "swiss"]
[EventCountry "GER"]
[SourceTitle "playchess.com"]
[Source "ChessBase"]
[SourceQuality "1"]
[TimeControl "40/5400+30:1800+30"]

1. e4 {[%emt 0:07:54]} c5 {[%emt 0:00:15]} 2. Nf3 {[%emt 0:00:07]} d6 {[%emt 0:00:15]} 3. d4 {[%emt 0:00:06]} cxd4 {[%emt 0:00:09]} 4. Nxd4 {[%emt 0:00:05]} Nf6 {[%emt 0:00:08]} 5. Nc3 {[%emt 0:00:03]} a6 {[%emt 0:00:10]} 6. h3 {[%emt 0:00:28]} e5 {[%emt 0:00:11]} 7. Nf3 {[%emt 0:00:24]} Qc7 {[%emt 0:08:09]} 8. g4 {[%emt 0:02:59]} h6 {[%emt 0:00:30]} 9. a4 {[%emt 0:15:31]} Be6 {[%emt 0:03:00]} 10. Be3 {[%emt 0:06:39]} Nc6 {[%emt 0:14:35]} 11. g5 {[%emt 0:06:59]} hxg5 {[%emt 0:00:16]} 12. Nxg5 {[%emt 0:00:05]} Nb4 {[%emt 0:00:30]} 13. Bg2 {[%emt 0:09:11]} d5 {[%emt 0:08:31]} 14. exd5 {[%emt 0:02:36]} Rd8 {[%emt 0:00:10]} 15. Nxe6 {[%emt 0:02:59]} fxe6 {[%emt 0:00:40]} 16. d6 {[%emt 0:00:36]} Rxd6 {[%emt 0:02:20]} 17. Qe2 {[%emt 0:04:47]} Nfd5 {[%emt 0:04:24]} 18. O-O {[%emt 0:04:57]} Nxc3 {[%emt 0:17:59]} 19. bxc3 {[%emt 0:00:07]} Nd5 {[%emt 0:00:07]} 20. c4 {[%emt 0:03:06]} Nc3 {[%emt 0:12:59]} 21. Qg4 {[%emt 0:01:31]} Rc6 {[%emt 0:01:58]} 22. Bxc6+ {[%emt 0:07:22]} Qxc6 {[%emt 0:03:08]} 23. Qg6+ {[%emt 0:00:29]} Kd7 {[%emt 0:00:20]} 24. Qd3+ {[%emt 0:04:23]} Kc8 {[%emt 0:00:10]} 25. Qxc3 {[%emt 0:00:26]} Qf3 {[%emt 0:04:14]} 26. Bd2 {[%emt 0:03:38]} Qf5 {[%emt 0:02:51]} 27. Qg3 {[%emt 0:07:25]} Rxh3 {[%emt 0:05:32]} 28. Qg5 {[%emt 0:00:03]} Qf3 {[%emt 0:00:13]} 29. Qg2 {[%emt 0:00:03]} Qh5 {[%emt 0:00:08]} 30. Rfb1 {[%emt 0:02:02]} Rh4 {[%emt 0:00:42]} 31. Qxb7+ {[%emt 0:00:15]} Kd8 {[%emt 0:00:07]} 32. Qb8+ {[%emt 0:00:23]} Ke7 {[%emt 0:00:15]} 33. Rb7+ {[%emt 0:00:06]} 1-0

[Event "27th OIBM 2024"]
[Site "Gmund am Tegernsee"]
[Date "2024.10.27"]
[Round "2.1"]
[White "Kollars, Dmitrij"]
[Black "Radnaev, Nomin"]
[Result "1-0"]
[ECO "B90"]
[WhiteElo "2647"]
[BlackElo "2209"]
[Annotator "TA"]
[PlyCount "78"]
[EventDate "2024.09.16"]
[EventType "swiss"]
[EventCountry "GER"]
[SourceTitle "playchess.com"]
[Source "ChessBase"]
[SourceQuality "1"]
[TimeControl "40/5400+30:1800+30"]

{[%evp 15,78,8,4,0,8,14,0,0,5,6,6,18,20,0,42,0,43,31,42,41,77,29,43,43,89,83,91,87,89,35,43,37,30,37,102,111,104,101,133,147,193,218,233,147,182,206,252,234,344,329,386,364,419,421,385,402,417,408,479,480,1047,1035,995,983,831]} 1. e4 {[%emt 0:00:21]} c5 {[%emt 0:00:42]} 2. Nf3 {[%emt 0:00:12]} d6 {[%emt 0:00:11]} 3. d4 {[%emt 0:00:13]} cxd4 {[%emt 0:00:11]} 4. Nxd4 {[%emt 0:00:07]} Nf6 {[%emt 0:00:05]} 5. Nc3 {[%emt 0:00:03]} a6 {[%emt 0:00:09]} 6. Bd3 {[%emt 0:00:39]} e5 {[%emt 0:04:25]} 7. Nde2 {[%emt 0:00:14]} Be7 {[%emt 0:03:10]} 8. O-O {[%emt 0:00:10]} O-O {[%emt 0:00:19]} 9. Ng3 {[%emt 0:01:05]} Be6 {[%emt 0:02:25] [#]} 10. Nd5 $1 {[%emt 0:00:26]} Bxd5 {[%emt 0:00:25]} 11. exd5 {[%emt 0:00:04] The position is equal.} g6 {[%emt 0:00:46] Prevents Nf5.} 12. c4 $1 {[%emt 0:02:09]} Nbd7 {[%emt 0:01:59]} 13. Bh6 {[%emt 0:06:13]} Re8 {[%emt 0:00:23]} 14. Rc1 {[%emt 0:01:49]} a5 {[%emt 0:04:54]} 15. h3 {[%emt 0:09:07]} Qc7 {[%emt 0:06:44]} 16. b3 {[%emt 0:03:46]} Bf8 {[%emt 0:07:38]} 17. Be3 {[%emt 0:01:10]} Bg7 {[%emt 0:07:25]} 18. Qd2 {[%emt 0:03:12]} ({White should play} 18. Ne2 $16) 18... b6 {[%emt 0:06:14]} 19. Bc2 {[%emt 0:08:31]} Rf8 {[%emt 0:05:33]} (19... Nc5 $14) 20. Ne2 $16 {[%emt 0:01:31][%cal Bg3e2,Be2c3,Bc3b5][%mdl 32]} Nc5 {[%emt 0:08:14]} 21. Nc3 {[%emt 0:01:07] Dodges Nfe4} Nh5 {[%emt 0:01:27]} 22. a3 {[%emt 0:03:35]} (22. Nb5 $16 Qd7 23. g4) 22... f5 $14 {[%emt 0:05:08]} 23. b4 {[%emt 0:07:35]} axb4 {[%emt 0:04:44]} 24. axb4 {[%emt 0:49:11]} Nd7 {[%emt 0:05:05]} ({Don't play} 24... f4 25. Bxc5 bxc5 26. Ne4 $16) (24... Na6 $14 25. Nb5 Qxc4 26. Nxd6 Qxb4 27. Qxb4 Nxb4) 25. Nb5 $16 {[%emt 0:00:30] White leaves nothing to chance now.} Qb8 {[%emt 0:02:42]} 26. Bg5 {[%emt 0:00:00] White has more active pieces.} Nhf6 {[%emt 0:01:49]} 27. Ra1 {[%emt 0:00:00]} Rxa1 {[%emt 0:00:30]} (27... Ne8 $16 28. Rxa8 Qxa8) 28. Rxa1 $18 {[%emt 0:00:00]} Rc8 {[%emt 0:02:24]} 29. Qe2 {[%emt 0:00:00]} h6 {[%emt 0:00:30]} 30. Be3 {[%emt 0:00:00]} Re8 31. Ra7 {[%emt 0:00:00]} e4 (31... Bf8 $142 32. Bd1 h5) 32. Bb3 {[%emt 0:03:30][%cal Bc2b3,Bb3d1,Bd1e2][%mdl 32]} g5 {[%emt 0:06:54]} 33. Qa2 {[%emt 0:00:00]} f4 {[%emt 0:00:23]} 34. Bd4 {[%emt 0:00:00]} e3 {[%emt 0:04:51] Black is weak on the light squares} 35. fxe3 {[%emt 0:00:00]} fxe3 {[%emt 0:02:28] [#] And now ...e2 would win.} 36. Bd1 {[%emt 0:00:00]} Nf8 {[%emt 0:04:41]} 37. Be2 {[%emt 0:00:00] A strong pair of Bishops. White is clearly winning.} Bh8 {[%emt 0:00:30]} (37... N6d7 $142 38. Bxg7 Kxg7 39. Qa1+ Kg8) 38. c5 {[%emt 0:00:00]} bxc5 {[%emt 0:00:30]} 39. bxc5 {[%emt 0:00:00]} Ng6 {[%emt 0:02:56] Weighted Error Value: White=0.09 (flawless) /Black=0.29 (precise) .  Mistake:       	White=2     	Black=5      Inaccurate:     	White=2     	Black=4      OK:         	White=14    	Black=6      Best:        	White=3     	Black=1      Strong:       	White=1     	---} 1-0

[Event "27th OIBM 2024"]
[Site "Gmund am Tegernsee"]
[Date "2024.10.27"]
[Round "2.2"]
[White "Papadopoulos, Ioannis K."]
[Black "Safarli, Eltaj"]
[Result "0-1"]
[ECO "B32"]
[WhiteElo "2382"]
[BlackElo "2596"]
[Annotator "TA"]
[PlyCount "84"]
[EventDate "2024.09.16"]
[EventType "swiss"]
[EventCountry "GER"]
[SourceTitle "playchess.com"]
[Source "ChessBase"]
[SourceQuality "1"]
[TimeControl "40/5400+30:1800+30"]

{[%evp 14,84,24,14,43,22,25,10,6,0,0,-25,-32,-53,-75,-68,-73,-77,-92,-64,-70,-85,-77,-89,-101,-113,-112,-135,-145,-156,-156,-164,-158,-163,-113,-156,-58,-50,-64,-51,-49,-44,-14,-22,-21,-15,-8,-8,-12,-72,-4,-35,-37,-52,-45,-52,-47,-351,-259,-730,-730,-1301,-1206,-1084,-1128,-29981,-29971,-29971,-8227,-1949,-1852,-5708,-3166]} 1. e4 {[%emt 0:00:03]} c5 {[%emt 0:00:15]} 2. Nf3 {[%emt 0:00:12][%cal Bg1f3,Bf3d4,Bd4b5,Bb5a3,Ba3c4][%mdl 32]} Nc6 {[%emt 0:00:11]} 3. d4 {[%emt 0:00:16]} cxd4 {[%emt 0:00:05]} 4. Nxd4 {[%emt 0:00:03]} e5 {[%emt 0:00:24]} 5. Nb5 {[%emt 0:00:06]} d6 {[%emt 0:00:25]} 6. N1c3 {[%emt 0:00:13]} a6 {[%emt 0:00:19]} 7. Na3 {[%emt 0:00:04]} Be6 {[%emt 0:00:37]} 8. Nc4 {[%emt 0:01:21]} Rb8 {[%emt 0:00:57]} 9. Nd5 {[%emt 0:03:39]} Bxd5 {[%emt 0:02:13]} 10. exd5 {[%emt 0:00:05]} (10. Qxd5 Nd4 11. Ne3 Nf6 $15) 10... Nce7 {[%emt 0:00:17] The position is equal.} 11. g4 {[%emt 0:03:16]} Nf6 {[%emt 0:02:13]} 12. g5 {[%emt 0:06:24]} Nfxd5 {[%emt 0:04:06]} 13. Bg2 {[%emt 0:00:27]} b5 $1 {[%emt 0:02:01]} 14. Bxd5 {[%emt 0:02:30]} Nxd5 {[%emt 0:01:50]} 15. Qxd5 {[%emt 0:00:15]} bxc4 {[%emt 0:00:05]} 16. Qxc4 {[%emt 0:07:41]} Be7 {[%emt 0:00:53]} 17. Qc6+ {[%emt 0:08:51]} Qd7 {[%emt 0:00:30]} 18. Qxd7+ {[%emt 0:00:04]} Kxd7 {[%emt 0:00:04]} 19. b3 {[%emt 0:01:05]} h6 {[%emt 0:04:22]} 20. gxh6 {[%emt 0:01:57]} g5 {[%emt 0:00:10]} ({Much less strong is} 20... gxh6 21. c4 $15) 21. c4 {[%emt 0:11:05]} Rxh6 {[%emt 0:00:43]} 22. Kf1 {[%emt 0:04:04]} Rbh8 {[%emt 0:02:01]} 23. Kg2 {[%emt 0:00:05]} Rh4 {[%emt 0:01:51]} 24. Bb2 {[%emt 0:07:08][%cal Oc4c5] [#]} Rg4+ {[%emt 0:03:40]} (24... g4 $1 $17 25. c5 f5 (25... dxc5 26. Bxe5 Rd8 27. Rad1+ Kc6 28. Rxd8 $14)) 25. Kf3 $15 {[%emt 0:04:55]} f5 {[%emt 0:03:37]} 26. h3 {[%emt 0:05:13]} Rf4+ {[%emt 0:05:19]} 27. Kg2 {[%emt 0:00:27]} g4 {[%emt 0:02:01]} 28. hxg4 {[%emt 0:04:54]} Bh4 {[%emt 0:04:51]} 29. Raf1 {[%emt 0:11:15]} Rxg4+ {[%emt 0:00:11]} 30. Kf3 {[%emt 0:00:03]} Rhg8 $36 {[%emt 0:00:30][%mdl 2048] Black has some pressure.} 31. Bc1 {[%emt 0:02:28] [#] Dodges Rf4+} (31. Rh2 $11) 31... Kc6 {[%emt 0:04:28] Black is more active.} (31... d5 $1 $17 32. cxd5 Rc8) 32. Rh3 {[%emt 0:02:56]} e4+ {[%emt 0:03:22]} 33. Ke2 {[%emt 0:07:55]} f4 {[%emt 0:00:17]} 34. Rfh1 {[%emt 0:03:01]} Bf6 {[%emt 0:03:21]} ({But not} 34... f3+ 35. Kf1 Bg5 36. Bxg5 R4xg5 37. Ke1) 35. Rh6 $2 {[%emt 0:01:30][%mdl 8192] This move loses the game for White.} (35. Kf1 $1 $15) 35... Bd4 {[%emt 0:01:39] White must now prevent ...f3+.} 36. Re6 $2 {[%emt 0:02:16]} (36. Kf1 Rg2 37. R6h2) 36... f3+ $19 {[%emt 0:01:09]} 37. Kf1 {[%emt 0:00:32]} Kd7 {[%emt 0:01:03]} 38. Reh6 {[%emt 0:00:03]} Rg2 {[%emt 0:00:10]} 39. Ba3 {[%emt 0:00:57]} Rxf2+ {[%emt 0:01:32]} 40. Ke1 {[%emt 0:00:04]} Re2+ {[%emt 0:00:21]} 41. Kd1 {[%emt 0:30:04]} Be5 {[%emt 0:30:05]} 42. c5 {[%emt 0:01:20]} Rxa2 {[%emt 0:01:50] Weighted Error Value: White=0.86/Black=0.11 (very precise) .  Loses game:     	White=1     	---        Mistake:       	White=2     	Black=2      Inaccurate:     	White=3     	Black=1      OK:         	White=7     	Black=15     Best:        	White=2     	Black=2      Strong:       	---       	Black=1} 0-1

[Event "27th OIBM 2024"]
[Site "Gmund am Tegernsee"]
[Date "2024.10.27"]
[Round "2.3"]
[White "Karthik Venkataraman"]
[Black "Bach, Matthias"]
[Result "1-0"]
[ECO "A65"]
[WhiteElo "2581"]
[BlackElo "2205"]
[Annotator "TA"]
[PlyCount "84"]
[EventDate "2024.09.16"]
[EventType "swiss"]
[EventCountry "GER"]
[SourceTitle "playchess.com"]
[Source "ChessBase"]
[SourceQuality "1"]
[TimeControl "40/5400+30:1800+30"]

{[%evp 18,84,34,40,38,49,39,52,69,67,67,79,104,105,204,213,204,201,214,99,162,92,85,95,98,103,124,101,100,0,104,92,95,91,173,172,180,168,169,58,189,189,182,81,583,137,91,45,45,45,236,236,229,221,221,214,1345,1409,1564,1564,2278,1797,3685,2022,5718,5448,5065,4823,772]} 1. d4 {[%emt 0:00:08]} Nf6 {[%emt 0:00:08]} 2. c4 {[%emt 0:00:05]} c5 {[%emt 0:00:05]} 3. d5 {[%emt 0:00:05]} e6 {[%emt 0:00:08]} 4. Nc3 {[%emt 0:00:04]} exd5 {[%emt 0:00:09]} 5. cxd5 {[%emt 0:00:05]} d6 {[%emt 0:00:12]} 6. e4 {[%emt 0:00:07]} g6 {[%emt 0:00:16]} 7. Bd3 {[%emt 0:00:09]} Bg7 {[%emt 0:03:51]} 8. h3 {[%emt 0:00:09]} O-O {[%emt 0:00:09]} 9. Nge2 {[%emt 0:00:03]} Re8 {[%emt 0:01:41]} 10. O-O {[%emt 0:00:11]} c4 {[%emt 0:00:24]} 11. Bc2 {[%emt 0:01:34]} b5 {[%emt 0:00:13]} 12. Nxb5 {[%emt 0:09:44]} Nxe4 {[%emt 0:00:15] White is slightly better.} 13. Bxe4 {[%emt 0:00:06]} Rxe4 {[%emt 0:00:10]} 14. Nec3 {[%emt 0:00:04]} Re8 {[%emt 0:03:59]} 15. Bf4 {[%emt 0:00:22]} Be5 {[%emt 0:02:02]} (15... Bf8 $16) 16. Bxe5 $18 {[%emt 0:00:30]} Rxe5 {[%emt 0:00:30]} 17. Qd4 $1 {[%emt 0:02:22][%csl LRa7,LRc4][%cal Oa1e1] Rae1! is the strong threat.} Ba6 {[%emt 0:16:06]} 18. f4 {[%emt 0:03:32]} (18. Qxc4 $6 Bxb5 19. Qxb5 (19. Nxb5 Nd7 $16) 19... Nd7 $16) (18. Nxa7 $18 {Black must now prevent f4.} Qc7 19. f4) 18... Re8 {[%emt 0:05:37]} (18... Re7 $16 {is a better defense.}) 19. Rae1 {[%emt 0:00:20]} (19. Qxc4 $6 Bxb5 20. Qxb5 (20. Nxb5 Nd7 $16) 20... Nd7 $14) ({White should play} 19. Nxa7 $18 {And now Nc6 would win.} Nd7 (19... Qd7 20. Nc6 $14) 20. Nc6) 19... Bxb5 {[%emt 0:13:41]} 20. Nxb5 {[%emt 0:00:08]} Rxe1 {[%emt 0:03:21]} 21. Rxe1 {[%emt 0:00:03][%cal Ob5d6] Strongly threatening Nxd6!} Na6 {[%emt 0:00:12][%cal Bb8a6,Ba6c5,Bc5d3][%mdl 32]} 22. Nxa7 {[%emt 0:07:57][%cal Oa7c6] aiming for Nc6! White is much more active.} (22. Qxc4 Rc8 23. Qd4 Qa5 $16) 22... Qa5 {[%emt 0:05:08][%csl LRa2,LRe1]} 23. Re7 {[%emt 0:00:48]} (23. Rc1 $16 {Nc6 would now be deadly.} Qc5 24. Qxc5 (24. Rxc4 $2 Qxd4+ 25. Rxd4 Rxa7 $17) 24... Nxc5 25. Nb5) 23... Qc5 {[%emt 0:03:34]} (23... Nb4 $1 $11) 24. Qxc5 $1 $16 {[%emt 0:07:02]} Nxc5 {[%emt 0:00:08][%mdl 4096] Endgame. KRN-KRN} 25. Nb5 {[%emt 0:00:12]} Rxa2 {[%emt 0:09:36]} (25... Ra6 $16 {was necessary.}) 26. Nxd6 $18 {[%emt 0:00:11]} Rxb2 {[%emt 0:00:11]} 27. Rc7 $1 {[%emt 0:01:39]} (27. Nxf7 Rb1+ 28. Kf2 c3 29. Nh6+ Kf8 $11) (27. Nxc4 $6 Rb1+ 28. Kh2 Rd1 $14) 27... Nd3 {[%emt 0:16:53]} 28. Rxc4 {[%emt 0:03:31]} ({And not} 28. Nxc4 Rb1+ 29. Kh2 Nxf4 $11) (28. Rc8+ $1 $18 Kg7 29. Ne8+ (29. Rxc4 Ne1 $11) (29. Nxc4 Rb1+ 30. Kh2 Nxf4 $11) 29... Kh6 30. d6 (30. Rxc4 Rb8 $16) 30... Nxf4 31. d7 (31. Rxc4 g5 $11)) 28... h5 {[%emt 0:02:03]} (28... f5 $14) 29. Rc8+ {[%emt 0:03:21]} Kh7 {[%emt 0:03:23]} 30. Rc7 {[%emt 0:00:37]} (30. Nxf7 $18 Nxf4 31. d6 Rxg2+ 32. Kh1) 30... h4 $2 {[%emt 0:01:44][%mdl 8192]} (30... Kg8 $16 {prevents the worst.}) 31. Rxf7+ $2 {[%emt 0:00:23]} (31. Nxf7 $18 Nxf4 32. d6 Rxg2+ 33. Kf1) 31... Kg8 $16 {[%emt 0:01:09]} 32. Rb7 {[%emt 0:24:22]} ({Better is} 32. Rf6 $16 Rb1+ 33. Kh2) 32... Rxb7 $14 {[%emt 0:02:59]} 33. Nxb7 {[%emt 0:00:01] KN-KN} Kf8 $2 {[%emt 0:00:12] [#]} (33... Kf7 $1 $14) 34. f5 $1 $18 {[%emt 0:00:25]} gxf5 {[%emt 0:00:06]} 35. Nd6 {[%emt 0:00:04]} f4 {[%emt 0:01:22] [#]} 36. Nf5 {[%emt 0:00:10]} Kf7 $2 {[%emt 0:00:58]} (36... f3 37. gxf3 (37. Nxh4 fxg2 38. Nxg2 Ke7 $11) 37... Nf4) 37. Nxh4 {[%emt 0:00:30] White is clearly winning.} Kf6 {[%emt 0:00:16] [#]} 38. Kf1 $1 {[%emt 0:00:59]} ({Not} 38. Nf3 Nb4 $14) 38... Ke5 {[%emt 0:04:25]} 39. Ke2 {[%emt 0:00:12]} Nb4 {[%emt 0:01:30] [#]} 40. d6 $1 {[%emt 0:00:09]} Kxd6 {[%emt 0:00:19]} 41. Ng6 {[%emt 0:30:07]} Nc6 {[%emt 0:31:12]} 42. Kf3 {[%emt 0:00:37]} Kd5 {[%emt 0:01:13] Weighted Error Value: White=0.50/Black=0.64.  Loses game:     	---       	Black=2      Missed win:     	White=1     	---        Mistake:       	White=6     	Black=6      OK:         	White=7     	Black=8      Best:        	White=4     	Black=3      Strong:       	White=2     	---        Brilliant:      	White=1     	---} 1-0

[Event "27th OIBM 2024"]
[Site "Gmund am Tegernsee"]
[Date "2024.10.27"]
[Round "2.4"]
[White "Koehler, Christian Friedrich"]
[Black "Piorun, Kacper"]
[Result "0-1"]
[ECO "C02"]
[WhiteElo "2187"]
[BlackElo "2581"]
[Annotator "TA"]
[PlyCount "62"]
[EventDate "2024.09.16"]
[EventType "swiss"]
[EventCountry "GER"]
[SourceTitle "playchess.com"]
[Source "ChessBase"]
[SourceQuality "1"]
[TimeControl "40/5400+30:1800+30"]

{[%evp 9,62,37,39,23,43,50,54,52,65,4,17,15,16,16,17,0,0,6,91,41,35,-27,-16,-18,-25,-77,-94,-102,-83,-93,-96,-103,-90,-91,-114,-116,-115,-158,-85,-89,-85,-88,-76,-75,-3,0,0,-25,-25,-412,-406,-904,-885,-866,-863]} 1. e4 {[%emt 0:00:03]} e6 {[%emt 0:00:17]} 2. d4 {[%emt 0:00:02]} d5 {[%emt 0:00:05]} 3. e5 {[%emt 0:00:09]} a6 {[%emt 0:00:52]} 4. Nf3 {[%emt 0:00:46]} Bd7 {[%emt 0:00:06]} 5. c4 {[%emt 0:01:08]} dxc4 {[%emt 0:06:29]} 6. Bxc4 {[%emt 0:00:31]} Ne7 {[%emt 0:00:04]} 7. Nc3 {[%emt 0:00:29]} Bc6 {[%emt 0:01:01]} 8. O-O {[%emt 0:00:38] White is slightly better.} h6 {[%emt 0:00:20] Inhibits Ng5.} 9. Qe2 {[%emt 0:03:58]} (9. Be3 $14) 9... Nd7 $11 {[%emt 0:07:06][%cal Bb8d7,Bd7b6,Bb6d5][%mdl 32]} 10. Rd1 {[%emt 0:00:54]} Nb6 {[%emt 0:00:11]} 11. Bb3 {[%emt 0:00:02]} Nbd5 {[%emt 0:03:32]} 12. Ne4 {[%emt 0:01:42]} Nf5 {[%emt 0:05:46]} 13. Bd2 {[%emt 0:02:53]} Nh4 {[%emt 0:05:41]} (13... Be7 $11) 14. Rac1 {[%emt 0:14:03]} (14. Nxh4 $16 Qxh4 15. Rac1) 14... Bb5 $14 {[%emt 0:00:32]} 15. Qe1 {[%emt 0:02:26]} ({White should try} 15. Bc4 $14 Bc6 16. Nxh4 Qxh4 17. Bb3) 15... Nxf3+ $11 {[%emt 0:02:07]} 16. gxf3 {[%emt 0:02:20]} Qd7 {[%emt 0:05:47]} 17. Nc5 {[%emt 0:08:59]} (17. Nc3 $11) 17... Bxc5 $17 {[%emt 0:00:50]} 18. Rxc5 {[%emt 0:00:12]} Bc6 {[%emt 0:06:58]} 19. Bxd5 {[%emt 0:09:29]} Bxd5 {[%emt 0:00:06]} 20. Rdc1 {[%emt 0:06:29]} c6 {[%emt 0:00:28][%cal Of7f6]} 21. Qe3 {[%emt 0:00:35]} f6 {[%emt 0:07:29]} (21... Bxa2 $2 22. b3 $18) 22. f4 {[%emt 0:10:20]} fxe5 {[%emt 0:07:09]} (22... Bxa2 23. b3 $16) 23. dxe5 {[%emt 0:01:34]} Qf7 {[%emt 0:01:07]} (23... Bxa2 24. b3 Qf7 25. Qg3 $17) ({Black should play} 23... g5 $1 {[%cal Rg5f4] aiming for ...gxf4.} 24. fxg5 O-O-O) 24. R5c3 {[%emt 0:04:47]} g5 {[%emt 0:03:16]} 25. fxg5 {[%emt 0:04:14]} hxg5 {[%emt 0:00:08] And now ...0-0-0 would win. White is weak on the light squares} 26. Qg3 {[%emt 0:01:23] [#]} (26. Qxg5 $2 {loses.} Rg8 $19 (26... Bxa2 27. Rg3 $11) (26... Bxa2 27. Rg3 $11)) 26... O-O-O {[%emt 0:02:24] Black is more active.} ({Better is} 26... g4 $1 $17 {...0-0-0 is the strong threat.} 27. Bg5 Qf5) 27. Bxg5 $11 {[%emt 0:01:33]} Rdg8 {[%emt 0:01:18]} 28. f4 {[%emt 0:00:30]} (28. Kf1 $5) 28... Qf5 {[%emt 0:06:21][%cal Of5e4] Strongly threatening ...Qe4!} 29. b3 $2 {[%emt 0:00:37][%mdl 8192] [#]} (29. Re1 $11 {and White is okay.}) 29... Qe4 $1 $19 {[%emt 0:01:06]} 30. h4 {[%emt 0:00:40] [#]} (30. Rc4 $142 Bxc4 31. bxc4) 30... Rxh4 $3 {[%emt 0:00:24][%cal Og8g5][%mdl 512] ( -> ...Rxg5!)} 31. Kf2 {[%emt 0:01:09] [#]} Rxg5 $1 {[%emt 0:00:44][%mdl 512] Weighted Error Value: White=0.64/Black=0.14 (very precise) .  Loses game:     	White=1     	---        Mistake:       	White=5     	Black=3      Inaccurate:     	White=1     	---        OK:         	White=8     	Black=8      Best:        	White=2     	Black=3      Strong:       	---       	Black=1} 0-1